fUSD/lending_fUSD_20250629
["ID","MTS","AMOUNT","RATE_DAILY","PERIOD"]
[368504333,1751191848970,-490.0,0.00027945,3]
[368504335,1751191848979,-1624.13,0.00027945,3]
[368504337,1751191848989,-1134.44,0.00027945,3]
[368504339,1751191848999,-490.0,0.00027945,3]
[368504341,1751191849008,-490.0,0.00027945,3]
[368504343,1751191849017,-490.0,0.00027945,3]
[368504345,1751191849027,-1604.43,0.00027945,3]
[368504347,1751191849036,-490.0,0.00027945,3]
[368504349,1751191849046,-1174.46,0.00027945,3]
[368504351,1751191849055,-1771.99,0.00027945,3]
[368504353,1751191849066,-490.0,0.00027945,3]
[368504355,1751191849075,-697.9,0.00027945,3]
[368504357,1751191849084,-288.88,0.00027945,3]
[368504359,1751191849094,-490.0,0.00027945,3]
[368504361,1751191849103,-490.0,0.00027945,3]
[368504363,1751191849113,-1276.32,0.00027945,3]
[368504365,1751191849123,-490.0,0.00027945,3]
[368504367,1751191849133,-490.0,0.00027945,3]
[368504369,1751191849142,-829.63,0.00027945,3]
[368504371,1751191849151,-490.0,0.00027945,3]
[368504373,1751191849161,-1091.18,0.00027945,3]
[368504375,1751191849171,-490.0,0.00027945,3]
[368504377,1751191849182,-240.89,0.00027945,3]
[368504379,1751191849191,-490.0,0.00027945,3]
[368504381,1751191849202,-199.16,0.00027945,3]
[368504384,1751191849212,-1264.85,0.00027945,3]
[368504385,1751191849221,-490.0,0.00027945,3]
[368504387,1751191849231,-1402.48,0.00027945,3]
[368504389,1751191849241,-505.73,0.00027945,3]
[368504391,1751191849251,-956.7,0.00027945,3]
[368504393,1751191849260,-490.0,0.00027945,3]
[368504395,1751191849271,-490.0,0.00027945,3]
[368504397,1751191849281,-544.41,0.00027945,3]
[368504399,1751191849291,-185.1806648,0.00027945,3]
[368504401,1751191849301,-302.35,0.00027945,3]
[368504403,1751191849311,-490.0,0.00027945,3]
[368504405,1751191849321,-837.64,0.00027945,3]
[368504407,1751191849330,-490.0,0.00027945,3]
[368504409,1751191849340,-527.67,0.00027945,3]
[368504411,1751191849350,-490.0,0.00027945,3]
[368504414,1751191849360,-490.0,0.00027945,3]
[368504415,1751191849371,-490.0,0.00027945,3]
[368504417,1751191849380,-824.84,0.00027945,3]
[368504419,1751191849389,-405.36,0.00027945,3]
[368504421,1751191849398,-490.0,0.00027945,3]
[368504423,1751191849408,-664.05,0.00027945,3]
[368504425,1751191849417,-776.65,0.00027945,3]
[368504427,1751191849426,-490.0,0.00027945,3]
[368504429,1751191849435,-490.0,0.00027945,3]
[368504431,1751191849445,-490.0,0.00027945,3]
[368504433,1751191849454,-490.0,0.00027945,3]
[368504435,1751191849463,-490.0,0.00027945,3]
[368504437,1751191849473,-490.0,0.00027945,3]
[368504439,1751191849482,-490.0,0.00027945,3]
[368504441,1751191849492,-490.0,0.00027945,3]
[368504443,1751191849501,-490.0,0.00027945,3]
[368504445,1751191849510,-490.0,0.00027945,3]
[368504447,1751191849519,-490.0,0.00027945,3]
[368504449,1751191849528,-490.0,0.00027945,3]
[368504451,1751191849538,-490.0,0.00027945,3]
[368504453,1751191849547,-609.68,0.00027945,3]
[368504455,1751191849557,-787.44,0.00027945,3]
[368504457,1751191849566,-490.0,0.00027945,3]
[368504459,1751191849576,-490.0,0.00027945,3]
[368504461,1751191849585,-490.0,0.00027945,3]
[368504463,1751191849595,-490.0,0.00027945,3]
[368504465,1751191849604,-490.0,0.00027945,3]
[368504467,1751191849613,-490.0,0.00027945,3]
[368504469,1751191849622,-490.0,0.00027945,3]
[368504471,1751191849631,-490.0,0.00027945,3]
[368504473,1751191849641,-490.0,0.00027945,3]
[368504475,1751191849650,-490.0,0.00027945,3]
[368504477,1751191849660,-490.0,0.00027945,3]
[368504479,1751191849669,-490.0,0.00027945,3]
[368504481,1751191849678,-919.46,0.00027945,3]
[368504482,1751191849687,-490.0,0.00027945,3]
[368504485,1751191849697,-490.0,0.00027945,3]
[368504486,1751191849706,-490.0,0.00027945,3]
[368504488,1751191849715,-490.0,0.00027945,3]
[368504490,1751191849724,-1237.83,0.00027945,3]
[368504492,1751191849734,-490.0,0.00027945,3]
[368504494,1751191849743,-490.0,0.00027945,3]
[368504496,1751191849753,-490.0,0.00027945,3]
[368504498,1751191849763,-490.0,0.00027945,3]
[368504500,1751191849772,-490.0,0.00027945,3]
[368504502,1751191849782,-1356.02,0.00027945,3]
[368504504,1751191849791,-490.0,0.00027945,3]
[368504506,1751191849801,-490.0,0.00027945,3]
[368504508,1751191849810,-490.0,0.00027945,3]
[368504510,1751191849820,-502.396171,0.00027945,3]
[368504512,1751191849829,-490.0,0.00027945,3]
[368504514,1751191849839,-490.0,0.00027945,3]
[368504516,1751191849848,-490.0,0.00027945,3]
[368504518,1751191849857,-242.14,0.00027945,3]
[368504521,1751191849868,-490.0,0.00027945,3]
[368504522,1751191849881,-490.0,0.00027945,3]
[368504524,1751191849890,-491.98693888,0.00027945,3]
[368504526,1751191849899,-490.0,0.00027945,3]
[368504528,1751191849909,-490.0,0.00027945,3]
[368504530,1751191849918,-2516.86,0.00027945,3]
[368504532,1751191849927,-509.38953624,0.00027945,3]
[368504534,1751191849936,-490.0,0.00027945,3]
[368504536,1751191849945,-490.0,0.00027945,3]
[368504538,1751191849955,-490.0,0.00027945,3]
[368504540,1751191849965,-490.0,0.00027945,3]
[368504542,1751191849975,-490.0,0.00027945,3]
[368504544,1751191849984,-490.0,0.00027945,3]
[368504546,1751191849993,-490.0,0.00027945,3]
[368504548,1751191850002,-490.0,0.00027945,3]
[368504550,1751191850011,-490.0,0.00027945,3]
[368504552,1751191850020,-265.34227987,0.00027945,3]
[368504554,1751191850030,-490.0,0.00027945,3]
[368504556,1751191850039,-490.0,0.00027945,3]
[368504558,1751191850048,-490.0,0.00027945,3]
[368504560,1751191850058,-490.0,0.00027945,3]
[368504562,1751191850067,-490.0,0.00027945,3]
[368504564,1751191850076,-490.0,0.00027945,3]
[368504566,1751191850085,-490.0,0.00027945,3]
[368504568,1751191850095,-490.0,0.00027945,3]
[368504570,1751191850104,-490.0,0.00027945,3]
[368504572,1751191850113,-490.0,0.00027945,3]
[368504574,1751191850123,-151.97924692,0.00027945,3]
[368504576,1751191850132,-490.0,0.00027945,3]
[368504578,1751191850142,-490.0,0.00027945,3]
[368504580,1751191850152,-490.0,0.00027945,3]
[368504582,1751191850162,-490.0,0.00027945,3]
[368504584,1751191850171,-490.0,0.00027945,3]
[368504585,1751191850182,-548.8589871,0.00027945,3]
[368504587,1751191850192,-3998.31,0.00027945,3]
[368504589,1751191850201,-508.88053461,0.00027945,3]
[368504590,1751191850211,-490.0,0.00027945,3]
[368504591,1751191850220,-517.27,0.00027945,3]
[368504592,1751191850230,-490.0,0.00027945,3]
[368504593,1751191850239,-490.0,0.00027945,3]
[368504594,1751191850248,-490.0,0.00027945,3]
[368504595,1751191850258,-490.0,0.00027945,3]
[368504596,1751191850268,-490.0,0.00027945,3]
[368504597,1751191850277,-490.0,0.00027945,3]
[368504598,1751191850287,-490.0,0.00027945,3]
[368504599,1751191850298,-490.0,0.00027945,3]
[368504600,1751191850308,-490.0,0.00027945,3]
[368504601,1751191850318,-490.0,0.00027945,3]
[368504602,1751191850327,-490.0,0.00027945,3]
[368504603,1751191850336,-490.0,0.00027945,3]
[368504605,1751191850346,-490.0,0.00027945,3]
[368504607,1751191850355,-490.0,0.00027945,3]
[368504609,1751191850364,-409.9273087,0.00027945,3]
[368504611,1751191850373,-681.68,0.00027945,3]
[368504613,1751191850383,-490.0,0.00027945,3]
[368504615,1751191850393,-590.66715445,0.00027945,3]
[368504617,1751191850402,-490.0,0.00027945,3]
[368504619,1751191850411,-530.07988169,0.00027945,3]
[368504621,1751191850421,-490.0,0.00027945,3]
[368504623,1751191850430,-490.0,0.00027945,3]
[368504625,1751191850440,-490.0,0.00027945,3]
[368504627,1751191850449,-452.62946603,0.00027945,3]
[368504629,1751191850458,-490.0,0.00027945,3]
[368504631,1751191850467,-490.0,0.00027945,3]
[368504633,1751191850476,-490.0,0.00027945,3]
[368504635,1751191850486,-490.0,0.00027945,3]
[368504637,1751191850495,-490.0,0.00027945,3]
[368504639,1751191850504,-490.0,0.00027945,3]
[368504641,1751191850514,-490.0,0.00027945,3]
[368504643,1751191850523,-1135.09,0.00027945,3]
[368504645,1751191850531,-490.0,0.00027945,3]
[368504647,1751191850541,-490.0,0.00027945,3]
[368504649,1751191850550,-6626.58,0.00027945,3]
[368504651,1751191850559,-490.0,0.00027945,3]
[368504653,1751191850568,-490.0,0.00027945,3]
[368504655,1751191850577,-490.0,0.00027945,3]
[368504657,1751191850587,-490.0,0.00027945,3]
[368504659,1751191850596,-490.0,0.00027945,3]
[368504661,1751191850606,-490.0,0.00027945,3]
[368504664,1751191850615,-490.0,0.00027945,3]
[368504665,1751191850625,-490.0,0.00027945,3]
[368504667,1751191850633,-490.0,0.00027945,3]
[368504669,1751191850643,-490.0,0.00027945,3]
[368504671,1751191850653,-490.0,0.00027945,3]
[368504673,1751191850662,-490.0,0.00027945,3]
[368504675,1751191850672,-490.0,0.00027945,3]
[368504677,1751191850681,-490.0,0.00027945,3]
[368504679,1751191850691,-490.0,0.00027945,3]
[368504682,1751191850700,-1376.87,0.00027945,3]
[368504684,1751191850710,-490.0,0.00027945,3]
[368504686,1751191850720,-500.19444963,0.00027945,3]
[368504688,1751191850729,-490.0,0.00027945,3]
[368504690,1751191850738,-490.0,0.00027945,3]
[368504692,1751191850748,-490.0,0.00027945,3]
[368504694,1751191850757,-490.0,0.00027945,3]
[368504696,1751191850767,-490.0,0.00027945,3]
[368504698,1751191850776,-490.0,0.00027945,3]
[368504700,1751191850785,-6577.2,0.00027945,3]
[368504702,1751191850794,-1283.04,0.00027945,3]
[368504704,1751191850804,-490.0,0.00027945,3]
[368504706,1751191850813,-490.0,0.00027945,3]
[368504708,1751191850822,-490.0,0.00027945,3]
[368504710,1751191850832,-1459.1,0.00027945,3]
[368504712,1751191850841,-490.0,0.00027945,3]
[368504714,1751191850851,-490.0,0.00027945,3]
[368504716,1751191850861,-490.0,0.00027945,3]
[368504718,1751191850871,-1254.52,0.00027945,3]
[368504720,1751191850882,-490.0,0.00027945,3]
[368504722,1751191850891,-490.0,0.00027945,3]
[368504724,1751191850901,-490.0,0.00027945,3]
[368504726,1751191850910,-490.0,0.00027945,3]
[368504728,1751191850919,-490.0,0.00027945,3]
[368504730,1751191850928,-490.0,0.00027945,3]
[368504732,1751191850939,-490.0,0.00027945,3]
[368504734,1751191850948,-507.24861556,0.00027945,3]
[368504736,1751191850958,-490.0,0.00027945,3]
[368504738,1751191850967,-490.0,0.00027945,3]
[368504740,1751191850977,-490.0,0.00027945,3]
[368504742,1751191850985,-490.0,0.00027945,3]
[368504744,1751191850995,-490.0,0.00027945,3]
[368504746,1751191851005,-490.0,0.00027945,3]
[368504748,1751191851016,-490.0,0.00027945,3]
[368504750,1751191851025,-769.1,0.00027945,3]
[368504752,1751191851034,-553.56,0.00027945,3]
[368504754,1751191851043,-490.0,0.00027945,3]
[368504756,1751191851053,-490.0,0.00027945,3]
[368504763,1751191851113,-490.0,0.00027945,3]
[368504766,1751191851124,-511.92,0.00027945,3]
[368504768,1751191851134,-490.0,0.00027945,3]
[368504770,1751191851143,-490.0,0.00027945,3]
[368504772,1751191851152,-1039.8,0.00027945,3]
[368504774,1751191851162,-490.0,0.00027945,3]
[368504776,1751191851171,-490.0,0.00027945,3]
[368504778,1751191851180,-490.0,0.00027945,3]
[368504780,1751191851190,-169.31,0.00027945,3]
[368504782,1751191851199,-1495.28,0.00027945,3]
[368504784,1751191851209,-490.0,0.00027945,3]
[368504786,1751191851219,-490.0,0.00027945,3]
[368504788,1751191851228,-490.0,0.00027945,3]
[368504790,1751191851237,-197.14501092,0.00027945,3]
[368504792,1751191851246,-490.0,0.00027945,3]
[368504794,1751191851255,-1396.26,0.00027945,3]
[368504796,1751191851264,-490.0,0.00027945,3]
[368504798,1751191851273,-490.0,0.00027945,3]
[368504800,1751191851283,-501.15155117,0.00027945,3]
[368504802,1751191851292,-2746.27,0.00027945,3]
[368504804,1751191851301,-490.0,0.00027945,3]
[368504806,1751191851310,-490.0,0.00027945,3]
[368504808,1751191851321,-490.0,0.00027945,3]
[368504810,1751191851330,-503.71076927,0.00027945,3]
[368504812,1751191851340,-2169.03,0.00027945,3]
[368504814,1751191851351,-490.0,0.00027945,3]
[368504816,1751191851360,-490.0,0.00027945,3]
[368504818,1751191851369,-501.27150572,0.00027973,2]
[368504820,1751191851378,-500.0,0.00027973,5]
[368504822,1751191851387,-253.59,0.00027975,2]
[368504824,1751191851397,-1000.0,0.00028,2]
[368504826,1751191851406,-1000.0,0.00028,2]
[368504828,1751191851415,-1000.0,0.00028,2]
[368504830,1751191851424,-150.36,0.00028023,2]
[368504832,1751191851434,-174.481,0.00028023,2]
[368504834,1751191851443,-150.435,0.00028023,2]
[368504836,1751191851452,-253.434,0.00028116,2]
[368504838,1751191851460,-972.84690349,0.00028199,3]
[368504840,1751191851470,-972.84690349,0.00028208,3]
[368504842,1751191851479,-2918.54071047,0.00028209,3]
[368504844,1751191851488,-248.00910759,0.00028209,2]
[368504845,1751191851497,-490.0,0.00028218,3]
[368504847,1751191851506,-644.45,0.00028218,3]
[368504849,1751191851515,-490.0,0.00028218,3]
[368504851,1751191851524,-827.41,0.00028218,3]
[368504853,1751191851534,-490.0,0.00028218,3]
[368504855,1751191851543,-633.95,0.00028218,3]
[368504857,1751191851552,-490.0,0.00028218,3]
[368504859,1751191851561,-232.18173659,0.00028218,3]
[368504861,1751191851570,-490.0,0.00028218,3]
[368504863,1751191851579,-490.0,0.00028218,3]
[368504866,1751191851590,-5628.57,0.00028218,3]
[368504868,1751191851599,-490.0,0.00028218,3]
[368504870,1751191851609,-490.0,0.00028218,3]
[368504871,1751191851618,-490.0,0.00028218,3]
[368504873,1751191851627,-490.0,0.00028218,3]
[368504875,1751191851636,-533.57,0.00028218,3]
[368504877,1751191851645,-490.0,0.00028218,3]
[368504879,1751191851654,-502.79,0.00028218,3]
[368504881,1751191851663,-490.0,0.00028218,3]
[368504883,1751191851672,-490.0,0.00028218,3]
[368504885,1751191851681,-2335.52,0.00028218,3]
[368504887,1751191851690,-490.0,0.00028218,3]
[368504889,1751191851699,-230.82,0.00028218,3]
[368504891,1751191851709,-490.0,0.00028218,3]
[368504893,1751191851718,-490.0,0.00028218,3]
[368504895,1751191851727,-490.0,0.00028218,3]
[368504897,1751191851735,-490.0,0.00028218,3]
[368504899,1751191851746,-490.0,0.00028218,3]
[368504901,1751191851755,-490.0,0.00028218,3]
[368504903,1751191851764,-490.0,0.00028218,3]
[368504905,1751191851773,-13786.25,0.00028218,3]
[368504907,1751191851782,-490.0,0.00028218,3]
[368504909,1751191851792,-490.0,0.00028218,3]
[368504911,1751191851802,-490.0,0.00028218,3]
[368504914,1751191851812,-13119.86,0.00028218,3]
[368504916,1751191851821,-490.0,0.00028218,3]
[368504917,1751191851830,-1338.01,0.00028218,3]
[368504919,1751191851839,-2114.1,0.00028218,3]
[368504921,1751191851849,-490.0,0.00028219,3]
[368504923,1751191851858,-490.0,0.00028219,3]
[368504925,1751191851867,-490.0,0.00028219,3]
[368504927,1751191851880,-1439.59,0.00028219,3]
[368504930,1751191851890,-490.0,0.00028219,3]
[368504932,1751191851899,-595.0,0.00028219,3]
[368504933,1751191851908,-490.0,0.00028219,3]
[368504936,1751191851918,-1624.13,0.00028219,3]
[368504938,1751191851928,-1134.44,0.00028219,3]
[368504939,1751191851937,-490.0,0.00028219,3]
[368504941,1751191851947,-490.0,0.00028219,3]
[368504943,1751191851959,-490.0,0.00028219,3]
[368504945,1751191851968,-1604.43,0.00028219,3]
[368504947,1751191851978,-490.0,0.00028219,3]
[368504949,1751191851987,-1174.46,0.00028219,3]
[368504951,1751191851997,-1771.99,0.00028219,3]
[368504953,1751191852006,-490.0,0.00028219,3]
[368504955,1751191852015,-697.9,0.00028219,3]
[368504957,1751191852025,-490.0,0.00028219,3]
[368504959,1751191852034,-490.0,0.00028219,3]
[368504961,1751191852044,-1276.32,0.00028219,3]
[368504963,1751191852053,-490.0,0.00028219,3]
[368504965,1751191852062,-340.46,0.00028219,3]
[368504967,1751191852071,-829.63,0.00028219,3]
[368504969,1751191852080,-490.0,0.00028219,3]
[368504971,1751191852090,-1091.18,0.00028219,3]
[368504973,1751191852100,-490.0,0.00028219,3]
[368504975,1751191852110,-490.0,0.00028219,3]
[368504977,1751191852119,-1264.85,0.00028219,3]
[368504979,1751191852128,-292.1,0.00028219,3]
[368504981,1751191852138,-1402.48,0.00028219,3]
[368504983,1751191852147,-956.7,0.00028219,3]
[368504985,1751191852156,-490.0,0.00028219,3]
[368504987,1751191852166,-490.0,0.00028219,3]
[368504989,1751191852175,-544.41,0.00028219,3]
[368504991,1751191852185,-490.0,0.00028219,3]
[368504993,1751191852195,-837.64,0.00028219,3]
[368504995,1751191852204,-557.71,0.00028219,3]
[368504997,1751191852212,-527.67,0.00028219,3]
[368504999,1751191852221,-490.0,0.00028219,3]
[368505001,1751191852231,-490.0,0.00028219,3]
[368505003,1751191852240,-490.0,0.00028219,3]
[368505005,1751191852249,-824.84,0.00028219,3]
[368505007,1751191852259,-490.0,0.00028219,3]
[368505009,1751191852268,-664.05,0.00028219,3]
[368505011,1751191852277,-776.65,0.00028219,3]
[368505013,1751191852287,-490.0,0.00028219,3]
[368505015,1751191852296,-490.0,0.00028219,3]
[368505017,1751191852306,-490.0,0.00028219,3]
[368505019,1751191852315,-490.0,0.00028219,3]
[368505021,1751191852325,-490.0,0.00028219,3]
[368505023,1751191852334,-490.0,0.00028219,3]
[368505025,1751191852344,-490.0,0.00028219,3]
[368505027,1751191852353,-490.0,0.00028219,3]
[368505029,1751191852363,-240.59,0.00028219,3]
[368505031,1751191852372,-490.0,0.00028219,3]
[368505033,1751191852380,-490.0,0.00028219,3]
[368505035,1751191852390,-576.18,0.00028219,3]
[368505037,1751191852400,-609.68,0.00028219,3]
[368505039,1751191852409,-787.44,0.00028219,3]
[368505041,1751191852418,-490.0,0.00028219,3]
[368505043,1751191852427,-490.0,0.00028219,3]
[368505045,1751191852437,-490.0,0.00028219,3]
[368505047,1751191852446,-490.0,0.00028219,3]
[368505049,1751191852455,-490.0,0.00028219,3]
[368505051,1751191852464,-490.0,0.00028219,3]
[368505053,1751191852473,-490.0,0.00028219,3]
[368505055,1751191852482,-490.0,0.00028219,3]
[368505057,1751191852491,-348.03153368,0.00028219,3]
[368505059,1751191852500,-919.46,0.00028219,3]
[368505061,1751191852509,-176.33,0.00028219,3]
[368505063,1751191852518,-1237.83,0.00028219,3]
[368505065,1751191852527,-490.0,0.00028219,3]
[368505067,1751191852537,-1356.02,0.00028219,3]
[368505069,1751191852546,-2516.86,0.00028219,3]
[368505071,1751191852555,-490.0,0.00028219,3]
[368505073,1751191852564,-490.0,0.00028219,3]
[368505075,1751191852573,-490.0,0.00028219,3]
[368505077,1751191852582,-490.0,0.00028219,3]
[368505079,1751191852591,-490.0,0.00028219,3]
[368505081,1751191852600,-490.0,0.00028219,3]
[368505083,1751191852609,-556.94,0.00028219,3]
[368505085,1751191852619,-490.0,0.00028219,3]
[368505087,1751191852629,-207.08505285,0.00028219,3]
[368505089,1751191852638,-490.0,0.00028219,3]
[368505091,1751191852647,-3998.31,0.00028219,3]
[368505093,1751191852656,-490.0,0.00028219,3]
[368505095,1751191852665,-490.0,0.00028219,3]
[368505097,1751191852674,-490.0,0.00028219,3]
[368505099,1751191852684,-490.0,0.00028219,3]
[368505101,1751191852694,-490.0,0.00028219,3]
[368505103,1751191852703,-490.0,0.00028219,3]
[368505105,1751191852712,-490.0,0.00028219,3]
[368505107,1751191852721,-241.65,0.00028219,3]
[368505109,1751191852730,-490.0,0.00028219,3]
[368505111,1751191852739,-681.68,0.00028219,3]
[368505113,1751191852748,-490.0,0.00028219,3]
[368505115,1751191852758,-490.0,0.00028219,3]
[368505117,1751191852767,-490.0,0.00028219,3]
[368505119,1751191852776,-490.0,0.00028219,3]
[368505121,1751191852785,-1135.09,0.00028219,3]
[368505123,1751191852794,-490.0,0.00028219,3]
[368505125,1751191852803,-6626.58,0.00028219,3]
[368505127,1751191852812,-490.0,0.00028219,3]
[368505129,1751191852823,-490.0,0.00028219,3]
[368505131,1751191852833,-490.0,0.00028219,3]
[368505133,1751191852842,-490.0,0.00028219,3]
[368505135,1751191852851,-490.0,0.00028219,3]
[368505137,1751191852860,-490.0,0.00028219,3]
[368505139,1751191852871,-490.0,0.00028219,3]
[368505141,1751191852882,-490.0,0.00028219,3]
[368505143,1751191852891,-490.0,0.00028219,3]
[368505145,1751191852900,-490.0,0.00028219,3]
[368505147,1751191852910,-490.0,0.00028219,3]
[368505150,1751191852920,-1376.87,0.00028219,3]
[368505152,1751191852929,-490.0,0.00028219,3]
[368505154,1751191852939,-490.0,0.00028219,3]
[368505156,1751191852949,-516.34880232,0.00028219,3]
[368505158,1751191852958,-490.0,0.00028219,3]
[368505160,1751191852968,-490.0,0.00028219,3]
[368505162,1751191852977,-490.0,0.00028219,3]
[368505163,1751191852986,-6577.2,0.00028219,3]
[368505165,1751191852995,-1283.04,0.00028219,3]
[368505167,1751191853004,-490.0,0.00028219,3]
[368505169,1751191853013,-490.0,0.00028219,3]
[368505171,1751191853023,-490.0,0.00028219,3]
[368505173,1751191853032,-1459.1,0.00028219,3]
[368505175,1751191853042,-490.0,0.00028219,3]
[368505177,1751191853051,-490.0,0.00028219,3]
[368505180,1751191853062,-490.0,0.00028219,3]
[368505182,1751191853071,-1254.52,0.00028219,3]
[368505183,1751191853081,-490.0,0.00028219,3]
[368505185,1751191853090,-490.0,0.00028219,3]
[368505188,1751191853101,-490.0,0.00028219,3]
[368505189,1751191853110,-490.0,0.00028219,3]
[368505192,1751191853120,-490.0,0.00028219,3]
[368505194,1751191853130,-490.0,0.00028219,3]
[368505196,1751191853139,-490.0,0.00028219,3]
[368505197,1751191853148,-490.0,0.00028219,3]
[368505199,1751191853158,-490.0,0.00028219,3]
[368505201,1751191853167,-490.0,0.00028219,3]
[368505203,1751191853177,-490.0,0.00028219,3]
[368505206,1751191853187,-504.74625448,0.00028219,3]
[368505208,1751191853197,-490.0,0.00028219,3]
[368505210,1751191853206,-769.1,0.00028219,3]
[368505212,1751191853216,-490.0,0.00028219,3]
[368505214,1751191853225,-490.0,0.00028219,3]
[368505216,1751191853234,-497.73821189,0.00028219,3]
[368505218,1751191853243,-511.92,0.00028219,3]
[368505220,1751191853252,-490.0,0.00028219,3]
[368505222,1751191853261,-490.0,0.00028219,3]
[368505224,1751191853270,-1039.8,0.00028219,3]
[368505226,1751191853280,-490.0,0.00028219,3]
[368505228,1751191853289,-490.0,0.00028219,3]
[368505230,1751191853298,-366.26918042,0.00028219,3]
[368505232,1751191853308,-1495.28,0.00028219,3]
[368505234,1751191853317,-462.86377397,0.00028219,3]
[368505236,1751191853326,-490.0,0.00028219,3]
[368505238,1751191853336,-490.0,0.00028219,3]
[368505240,1751191853345,-1396.26,0.00028219,3]
[368505242,1751191853354,-490.0,0.00028219,3]
[368505243,1751191853363,-490.0,0.00028219,3]
[368505246,1751191853373,-2746.27,0.00028219,3]
[368505248,1751191853382,-490.0,0.00028219,3]
[368505250,1751191853391,-490.0,0.00028219,3]
[368505252,1751191853401,-490.0,0.00028219,3]
[368505254,1751191853411,-2169.03,0.00028219,3]
[368505256,1751191853420,-1000.0,0.00028221,5]
[368505258,1751191853430,-157.84265156,0.00028453,2]
[368505260,1751191853440,-1500.0,0.00028468,5]
[368505262,1751191853449,-159.72974989,0.00028473,2]
[368505264,1751191853459,-159.727904,0.00028473,2]
[368505266,1751191853469,-500.0,0.00028482,3]
[368505268,1751191853478,-500.0,0.00028482,3]
[368505270,1751191853488,-490.0,0.00028492,3]
[368505272,1751191853497,-644.45,0.00028492,3]
[368505274,1751191853507,-490.0,0.00028492,3]
[368505276,1751191853517,-827.41,0.00028492,3]
[368505278,1751191853526,-468.10997982,0.00028492,3]
[368505280,1751191853536,-633.95,0.00028492,3]
[368505282,1751191853545,-490.0,0.00028492,3]
[368505284,1751191853555,-490.0,0.00028492,3]
[368505286,1751191853564,-490.0,0.00028492,3]
[368505288,1751191853573,-5628.57,0.00028492,3]
[368505290,1751191853582,-261.24,0.00028492,3]
[368505292,1751191853591,-490.0,0.00028492,3]
[368505294,1751191853600,-490.0,0.00028492,3]
[368505296,1751191853609,-490.0,0.00028492,3]
[368505297,1751191853618,-2335.52,0.00028492,3]
[368505298,1751191853626,-490.0,0.00028492,3]
[368505299,1751191853635,-490.0,0.00028492,3]
[368505300,1751191853644,-369.48,0.00028492,3]
[368505301,1751191853653,-490.0,0.00028492,3]
[368505302,1751191853662,-500.0,0.00028492,3]
[368505303,1751191853671,-490.0,0.00028492,3]
[368505304,1751191853679,-13786.25,0.00028492,3]
[368505305,1751191853689,-490.0,0.00028492,3]
[368505306,1751191853698,-490.0,0.00028492,3]
[368505307,1751191853707,-490.0,0.00028492,3]
[368505308,1751191853716,-13119.86,0.00028492,3]
[368505309,1751191853725,-490.0,0.00028492,3]